bitfinex-derivatives/quotes_BTCF0:USTF0_20251028
["timestamp","ask_amount","ask_price","bid_price","bid_amount"]
[1761649201286,0.22742205,114640.0,114630.0,0.51769089]
[1761649201487,0.25007205,114640.0,114630.0,0.51509089]
[1761649201688,0.40075351,114640.0,114630.0,0.51509089]
[1761649203387,0.25007205,114640.0,114630.0,0.66577235]
[1761649203591,0.05494059,114640.0,114630.0,0.66577235]
[1761649203779,0.05494059,114640.0,114630.0,0.66837235]
[1761649204183,0.02352605,114640.0,114630.0,0.66837235]
[1761649207789,0.02352605,114640.0,114630.0,0.51769089]
[1761649208094,0.02352605,114640.0,114630.0,0.66837235]
[1761649208285,0.02352605,114640.0,114630.0,0.51769089]
[1761649208484,0.02352605,114640.0,114630.0,0.66837235]
[1761649210791,0.02352605,114640.0,114630.0,0.51769089]
[1761649210987,0.02352605,114640.0,114630.0,0.66837235]
[1761649212483,0.20562205,114650.0,114630.0,0.66837235]
[1761649212687,0.20562205,114650.0,114640.0,0.29876746]
[1761649212888,0.05494059,114650.0,114640.0,0.29876746]
[1761649213088,0.17420751,114650.0,114640.0,0.29876746]
[1761649213296,0.20562205,114650.0,114640.0,0.29876746]
[1761649213587,0.05494059,114650.0,114640.0,0.29616746]
[1761649213791,0.17420751,114650.0,114640.0,0.29616746]
[1761649214003,0.05494059,114650.0,114640.0,0.44944892]
[1761649214188,0.03141454,114650.0,114640.0,0.29616746]
[1761649214498,0.05266454,114650.0,114640.0,0.65696746]
[1761649215698,0.05266454,114650.0,114640.0,0.506286]
[1761649217912,0.07380454,114650.0,114640.0,0.506286]
[1761649220295,0.22449846,114650.0,114640.0,0.506286]
[1761649220690,0.07380454,114650.0,114640.0,0.506286]
[1761649226804,0.22449846,114650.0,114640.0,0.506286]
[1761649228806,0.07380454,114650.0,114640.0,0.506286]
[1761649232999,0.58529846,114650.0,114640.0,0.05825]
[1761649233198,0.66549258,114650.0,114640.0,0.04488]
[1761649233403,0.65549258,114650.0,114640.0,0.04488]
[1761649234611,0.65849258,114650.0,114640.0,0.04488]
[1761649235313,0.65649258,114650.0,114640.0,0.04488]
[1761649236304,0.63365355,114650.0,114640.0,0.04488]
[1761649240918,0.66502162,114650.0,114640.0,0.04488]
[1761649246126,0.5143277,114650.0,114640.0,0.04488]
[1761649246320,0.66502162,114650.0,114640.0,0.04488]
[1761649251033,0.30422162,114650.0,114640.0,0.04488]
[1761649251334,0.66502162,114650.0,114640.0,0.04488]
[1761649252034,0.66502162,114650.0,114640.0,0.02194]
[1761649252436,0.66502162,114650.0,114640.0,0.04371]
[1761649257431,0.64149557,114650.0,114640.0,0.04371]
[1761649257738,0.28069557,114650.0,114640.0,0.04371]
[1761649257930,0.64149557,114650.0,114640.0,0.04371]
[1761649260534,0.005,114640.0,114630.0,0.04509]
[1761649260734,0.0536,114630.0,114620.0,0.02191]
[1761649260943,0.80471252,114630.0,114620.0,0.04509]
[1761649261839,0.6540186,114630.0,114620.0,0.04509]
[1761649262236,0.62265053,114630.0,114620.0,0.04509]
[1761649262426,0.6540186,114630.0,114620.0,0.04509]
[1761649262738,0.62265053,114630.0,114620.0,0.04509]
[1761649262932,0.62265053,114630.0,114620.0,0.04809]
[1761649263538,0.62265053,114630.0,114620.0,0.04509]
[1761649263731,0.62365053,114630.0,114620.0,0.04509]
[1761649264241,0.6550006,114630.0,114620.0,0.04509]
[1761649264433,0.62363253,114630.0,114620.0,0.02191]
[1761649264739,0.77432645,114630.0,114620.0,0.02191]
[1761649264933,0.80569452,114630.0,114620.0,0.02191]
[1761649265240,0.77432645,114630.0,114620.0,0.02191]
[1761649268747,0.62363253,114630.0,114620.0,0.02191]
[1761649269446,0.6550006,114630.0,114620.0,0.04509]
[1761649270946,0.62363253,114630.0,114620.0,0.04509]
[1761649275751,0.77452515,114630.0,114620.0,0.04509]
[1761649281558,0.80589322,114630.0,114620.0,0.04509]
[1761649281957,0.80589322,114630.0,114620.0,0.02191]
[1761649282154,0.80589322,114630.0,114610.0,0.0582]
[1761649282349,0.70536654,114620.0,114610.0,0.0582]
[1761649282545,0.73678108,114620.0,114610.0,0.0582]
[1761649284059,0.73678108,114620.0,114610.0,0.0602]
[1761649285258,0.77560515,114620.0,114610.0,0.002]
[1761649285459,0.77300515,114620.0,114610.0,0.002]
[1761649285657,0.80437322,114620.0,114610.0,0.002]
[1761649285960,0.77300515,114620.0,114610.0,0.002]
[1761649286162,0.77300515,114620.0,114610.0,0.025]
[1761649286458,0.77300515,114620.0,114610.0,0.002]
[1761649286659,0.77560515,114620.0,114610.0,0.002]
[1761649286954,0.77560515,114620.0,114600.0,0.01337]
[1761649287162,0.19377327,114610.0,114600.0,0.0582]
[1761649287361,0.22518781,114610.0,114600.0,0.0582]
[1761649288362,0.24871188,114610.0,114600.0,0.0582]
[1761649289164,0.22518781,114610.0,114600.0,0.0582]
[1761649289363,0.24871188,114610.0,114600.0,0.0582]
[1761649290363,0.78154538,114610.0,114600.0,0.04483]
[1761649292464,0.63075211,114610.0,114600.0,0.04483]
[1761649293462,0.78154538,114610.0,114600.0,0.04483]
[1761649293663,0.77300515,114610.0,114600.0,0.04483]
[1761649293865,0.62221188,114610.0,114600.0,0.04483]
[1761649294564,0.45871861,114610.0,114600.0,0.05801]
[1761649294865,0.60951188,114610.0,114600.0,0.05801]
[1761649303370,0.62221188,114610.0,114600.0,0.05801]
[1761649305060,0.77300515,114610.0,114600.0,0.04483]
[1761649305374,0.77560515,114610.0,114590.0,0.06529814]
[1761649305565,0.34761654,114600.0,114590.0,0.06529814]
[1761649305764,0.37903108,114600.0,114590.0,0.06529814]
[1761649308075,0.37903108,114600.0,114590.0,0.06729814]
[1761649312586,0.07744454,114600.0,114590.0,0.30536531]
[1761649312780,0.22823781,114600.0,114590.0,0.22069141]
[1761649312986,0.22823781,114600.0,114590.0,0.30796531]
[1761649316895,0.07744454,114600.0,114590.0,0.15717204]
[1761649317196,0.22823781,114600.0,114590.0,0.30796531]
[1761649319495,0.22823781,114600.0,114590.0,0.66876531]
[1761649319496,0.07691454,114600.0,114590.0,0.66876531]
[1761649319690,0.22770781,114600.0,114590.0,0.66876531]
[1761649320495,0.22770781,114600.0,114590.0,0.66616531]
[1761649320897,0.22770781,114600.0,114590.0,0.51537204]
[1761649321092,0.22770781,114600.0,114590.0,0.66616531]
[1761649322295,0.22770781,114600.0,114590.0,0.51537204]
[1761649322596,0.22770781,114600.0,114590.0,0.66616531]
[1761649323688,0.22770781,114600.0,114590.0,0.51537204]
[1761649323993,0.37850108,114600.0,114590.0,0.51537204]
[1761649324897,0.40702515,114600.0,114590.0,0.04520356]
[1761649325097,0.40702515,114600.0,114590.0,0.02362356]
[1761649325601,0.41592325,114600.0,114590.0,0.02362356]
[1761649326000,0.77672325,114600.0,114590.0,0.02362356]
[1761649326201,0.76782515,114600.0,114590.0,0.02362356]
[1761649326801,0.76782515,114600.0,114590.0,0.00207356]
[1761649327004,0.92121842,114600.0,114590.0,0.00207356]
[1761649327200,0.80179322,114600.0,114590.0,0.00207356]
[1761649327398,0.77826915,114600.0,114590.0,0.00207356]
[1761649328297,0.80181186,114600.0,114590.0,0.00207356]
[1761649328697,0.81074933,114600.0,114590.0,0.00207356]
[1761649329098,0.80181186,114600.0,114590.0,0.00207356]
[1761649329296,0.80180863,114600.0,114590.0,0.00207356]
[1761649329802,0.8106485,114600.0,114590.0,0.00207356]
[1761649334806,0.96144177,114600.0,114590.0,0.00207356]
[1761649335297,0.9300737,114600.0,114590.0,0.00207356]
[1761649335810,0.96144177,114600.0,114590.0,0.00207356]
[1761649336309,0.9300737,114600.0,114590.0,0.00207356]
[1761649337010,0.96144177,114600.0,114590.0,0.00207356]
[1761649337918,0.81084612,114600.0,114590.0,0.00207356]
[1761649340502,0.78730664,114600.0,114590.0,0.00207356]
[1761649340913,0.83435874,114600.0,114590.0,0.00207356]
[1761649341320,0.78730664,114600.0,114590.0,0.00207356]
[1761649341916,0.83435874,114600.0,114590.0,0.00207356]
[1761649344411,0.83175874,114600.0,114590.0,0.00207356]
[1761649344616,0.83435874,114600.0,114590.0,0.00207356]
[1761649351422,0.04447,114580.0,114570.0,0.05691]
[1761649351623,0.22677662,114580.0,114570.0,0.05691]
[1761649352322,0.22685018,114580.0,114570.0,0.05691]
[1761649353022,0.22685018,114580.0,114570.0,0.05991]
[1761649353328,0.22685018,114580.0,114570.0,0.06091]
[1761649354324,0.0759581,114580.0,114570.0,0.06091]
[1761649354526,0.22685018,114580.0,114570.0,0.148199]
[1761649368744,0.25038015,114580.0,114570.0,0.148199]
[1761649372750,0.09948807,114580.0,114570.0,0.148199]
[1761649373136,0.05501807,114580.0,114570.0,0.65989108]
[1761649373352,0.0314881,114580.0,114570.0,0.66249108]
[1761649373550,0.0314881,114580.0,114570.0,0.511599]
[1761649373849,0.0314881,114580.0,114570.0,0.66249108]
[1761649381458,7.356e-05,114580.0,114570.0,0.66249108]
[1761649381761,0.06707997,114600.0,114590.0,0.1446037]
[1761649382056,0.09850728,114600.0,114590.0,0.1446037]
[1761649383256,0.10050728,114600.0,114590.0,0.1446037]
[1761649384554,0.10050728,114600.0,114590.0,0.1472037]
[1761649385061,0.07854728,114600.0,114590.0,0.1472037]
[1761649386352,0.10050728,114600.0,114590.0,0.1472037]
[1761649387258,0.07697731,114600.0,114590.0,0.1472037]
[1761649387460,0.10050728,114600.0,114590.0,0.1472037]
[1761649388059,0.10050728,114600.0,114590.0,0.1446037]
[1761649388359,0.25139936,114600.0,114590.0,0.1446037]
[1761649389462,0.22786939,114600.0,114590.0,0.1446037]
[1761649390161,0.25139936,114600.0,114590.0,0.1446037]
[1761649390362,0.22786939,114600.0,114590.0,0.1446037]
[1761649392261,0.25139936,114600.0,114590.0,0.1446037]
[1761649392462,0.22786939,114600.0,114590.0,0.1446037]
[1761649393268,0.25139936,114600.0,114590.0,0.1446037]
[1761649399870,0.40217972,114600.0,114590.0,0.1446037]
[1761649403068,0.56065594,114600.0,114590.0,0.04398]
[1761649403272,0.05556,114590.0,114580.0,0.5037662]
[1761649403470,0.23782353,114590.0,114580.0,0.5037662]
[1761649404473,0.23782353,114590.0,114580.0,0.05569]
[1761649404672,0.41218972,114590.0,114580.0,0.05569]
[1761649405167,0.2613535,114590.0,114580.0,0.05569]
[1761649405673,0.2613535,114590.0,114580.0,0.1429711]
[1761649406066,0.2613535,114590.0,114580.0,0.05569]
[1761649406261,0.77298972,114590.0,114580.0,0.02123]
[1761649406670,0.77298972,114590.0,114580.0,0.04234]
[1761649407973,0.77298972,114590.0,114580.0,0.02123]
[1761649408577,0.77498972,114590.0,114580.0,0.02123]
[1761649408771,0.77498972,114590.0,114580.0,0.04234]
[1761649410272,0.77498972,114590.0,114570.0,0.41922]
[1761649410470,0.35842244,114580.0,114570.0,0.5065088]
[1761649410775,0.38984975,114580.0,114570.0,0.5065088]
[1761649411572,0.37714975,114580.0,114570.0,0.5065088]
[1761649420178,0.07547731,114580.0,114570.0,0.5065088]
[1761649420376,0.37714975,114580.0,114570.0,0.5065088]
[1761649429282,0.37714975,114580.0,114570.0,0.5065087]
[1761649429484,0.37714975,114580.0,114570.0,0.41922]
[1761649429982,0.37714975,114580.0,114570.0,0.5065087]
[1761649430674,0.37714975,114580.0,114570.0,0.41922]
[1761649433886,0.38984975,114580.0,114570.0,0.41922]
[1761649434684,0.37714975,114580.0,114570.0,0.41922]
[1761649435685,0.40067972,114580.0,114570.0,0.41922]
[1761649436286,0.40067972,114580.0,114570.0,0.5065088]
[1761649439289,0.40067972,114580.0,114570.0,0.41922]
[1761649446780,0.40067972,114580.0,114570.0,0.05842]
[1761649450788,0.09900728,114580.0,114570.0,0.29654502]
[1761649450991,0.05495728,114580.0,114570.0,0.5065088]
[1761649451196,0.06746997,114580.0,114570.0,0.5065088]
[1761649451491,0.09889728,114580.0,114570.0,0.65734502]
[1761649451695,0.2497335,114580.0,114570.0,0.5065088]
[1761649451895,0.2497335,114580.0,114570.0,0.65734502]
[1761649453389,0.2271635,114580.0,114570.0,0.65734502]
[1761649454198,0.05495728,114580.0,114570.0,0.65994502]
[1761649454591,0.02352997,114580.0,114570.0,0.65994502]
[1761649454786,0.17436619,114580.0,114570.0,0.65994502]
[1761649454992,0.2057935,114580.0,114570.0,0.65994502]
[1761649455394,0.05495728,114580.0,114570.0,0.65994502]
[1761649455590,0.02352997,114580.0,114570.0,0.65994502]
[1761649455986,0.23716157,114590.0,114580.0,0.0872812]
[1761649456196,0.2497335,114590.0,114580.0,0.29580742]
[1761649456798,0.2497335,114590.0,114580.0,0.29840742]
[1761649457389,0.2517335,114590.0,114580.0,0.29840742]
[1761649459000,0.07832728,114590.0,114580.0,0.65920742]
[1761649459695,0.07832728,114590.0,114580.0,0.5083712]
[1761649460694,0.05479731,114590.0,114580.0,0.5083712]
[1761649464904,0.07736731,114590.0,114580.0,0.5083712]
[1761649465503,0.07736731,114590.0,114580.0,0.5057712]
[1761649465704,0.25173337,114590.0,114580.0,0.5057712]
[1761649472806,0.10089728,114590.0,114580.0,0.5057712]
[1761649473009,0.25173337,114590.0,114580.0,0.5057712]
[1761649475902,0.1842634,114590.0,114580.0,0.5057712]
[1761649476099,0.2059234,114590.0,114580.0,0.5057712]
[1761649476293,0.2278334,114590.0,114580.0,0.5057712]
[1761649476715,0.07699731,114590.0,114580.0,0.5057712]
[1761649482814,0.2278334,114590.0,114580.0,0.5057712]
[1761649484908,0.25136337,114590.0,114580.0,0.5057712]
[1761649490308,0.25136337,114590.0,114580.0,0.1449712]
[1761649490512,0.25136337,114590.0,114580.0,0.5057712]
[1761649496209,0.25136337,114590.0,114580.0,0.05769]
[1761649496413,0.65364144,114590.0,114580.0,0.04397]
[1761649496614,0.05627,114580.0,114570.0,0.04518]
[1761649496811,0.05622,114570.0,114560.0,0.04518]
[1761649497011,0.75006025,114570.0,114560.0,0.04518]
[1761649497311,0.80503028,114570.0,114560.0,0.04518]
[1761649497510,0.80503028,114570.0,114550.0,0.0583]
[1761649497511,0.00504,114560.0,114550.0,0.0583]
[1761649497704,0.25698191,114560.0,114550.0,0.04518]
[1761649497907,0.28840922,114560.0,114550.0,0.04518]
[1761649498418,0.25701732,114560.0,114550.0,0.04518]
[1761649498807,0.25701732,114560.0,114550.0,0.04718]
[1761649500625,0.25701732,114560.0,114550.0,0.04818]
[1761649501221,0.2334734,114560.0,114550.0,0.04818]
[1761649501619,0.61781732,114560.0,114550.0,0.04818]
[1761649502315,0.5916734,114560.0,114550.0,0.06182]
[1761649502616,0.5942734,114560.0,114550.0,0.06182]
[1761649503217,0.5916734,114560.0,114550.0,0.06182]
[1761649507118,0.5866334,114560.0,114550.0,0.06182]
[1761649509027,0.5892334,114560.0,114550.0,0.06182]
[1761649509226,0.5892334,114560.0,114550.0,0.06172]
[1761649510428,0.5866334,114560.0,114550.0,0.06172]
[1761649514327,0.61017732,114560.0,114550.0,0.06172]
[1761649515631,0.61531732,114560.0,114550.0,0.04808]
[1761649516627,0.61791732,114560.0,114550.0,0.04808]
[1761649518230,0.61791732,114560.0,114550.0,0.02485]
[1761649518632,0.64930922,114560.0,114550.0,0.003]
[1761649518927,0.6257653,114560.0,114550.0,0.003]
[1761649519330,0.7228174,114560.0,114550.0,0.003]
[1761649519719,1.02500384,114560.0,114550.0,0.003]
[1761649520629,0.99361194,114560.0,114550.0,0.003]
[1761649520820,1.02491626,114560.0,114550.0,0.001]
[1761649521019,0.04405,114540.0,114530.0,0.51179258]
[1761649521221,0.37749233,114540.0,114530.0,0.51179258]
[1761649522325,0.37749233,114540.0,114530.0,0.51279258]
[1761649522638,0.37749233,114540.0,114530.0,0.52547138]
[1761649523026,0.37749233,114540.0,114530.0,0.43815428]
[1761649523230,0.40097057,114540.0,114530.0,0.43815428]
[1761649523724,0.41618057,114540.0,114530.0,0.41659548]
[1761649523931,0.41618057,114540.0,114530.0,0.05579548]
[1761649524422,0.44748489,114540.0,114530.0,0.05579548]
[1761649524627,0.43227489,114540.0,114530.0,0.06909548]
[1761649524829,0.40879665,114540.0,114530.0,0.06909548]
[1761649525332,0.45584875,114540.0,114530.0,0.06909548]
[1761649525836,0.46845875,114540.0,114530.0,0.06909548]
[1761649526031,0.46845875,114540.0,114530.0,0.05579548]
[1761649526433,0.79795443,114540.0,114530.0,0.05579548]
[1761649527331,0.78534443,114540.0,114530.0,0.06909548]
[1761649527636,0.78834443,114540.0,114530.0,0.06409548]
[1761649528028,0.80095443,114540.0,114530.0,0.05079548]
[1761649530028,0.80355443,114540.0,114530.0,0.05079548]
[1761649530935,0.75650233,114540.0,114530.0,0.05079548]
[1761649532238,0.75650233,114540.0,114530.0,0.02764548]
[1761649532840,0.75650233,114540.0,114530.0,0.04869548]
[1761649534342,0.75390233,114540.0,114530.0,0.04869548]
[1761649534836,0.43927731,114540.0,114530.0,0.06193548]
[1761649535040,0.74129233,114540.0,114530.0,0.06193548]
[1761649537440,0.78835971,114540.0,114530.0,0.06193548]
[1761649542739,0.80105971,114540.0,114530.0,0.04869548]
[1761649543840,0.97033598,114540.0,114530.0,0.00436548]
[1761649544042,0.97033598,114540.0,114530.0,1e-08]
[1761649552053,1.57033598,114540.0,114530.0,1e-08]
[1761649552256,1.50759984,114540.0,114530.0,1e-08]
[1761649552752,1.35659233,114540.0,114530.0,1e-08]
[1761649553151,1.41932847,114540.0,114530.0,1e-08]
[1761649553455,1.35659233,114540.0,114530.0,1e-08]
[1761649554448,1.40106723,114540.0,114530.0,1e-08]
[1761649554659,1.40366723,114540.0,114530.0,1e-08]
[1761649556156,1.55467474,114540.0,114530.0,1e-08]
[1761649556456,0.80106723,114540.0,114530.0,0.04275001]
[1761649556755,0.81106723,114540.0,114530.0,0.04275001]
[1761649557055,0.81106723,114540.0,114530.0,0.02170001]
[1761649557452,0.81106723,114540.0,114530.0,1e-08]
[1761649559457,0.96207474,114540.0,114530.0,1e-08]
[1761649559955,0.9620762,114540.0,114530.0,1e-08]
[1761649560154,0.91499984,114540.0,114530.0,1e-08]
[1761649560756,0.81107096,114540.0,114530.0,1e-08]
[1761649564559,0.81107096,114540.0,114530.0,0.05821001]
[1761649564560,0.78837096,114540.0,114530.0,0.05821001]
[1761649564956,0.77268162,114540.0,114530.0,0.05821001]
[1761649565551,0.78538162,114540.0,114530.0,0.04493001]
[1761649567252,0.78538162,114540.0,114530.0,0.05792001]
[1761649567861,0.77268162,114540.0,114530.0,0.05792001]
[1761649569764,0.78837096,114540.0,114530.0,0.05792001]
[1761649570060,0.81977438,114540.0,114530.0,0.05792001]
[1761649570263,0.78837096,114540.0,114530.0,0.05792001]
[1761649570965,0.80107096,114540.0,114530.0,0.05792001]
[1761649572667,0.80107096,114540.0,114530.0,0.04493001]
[1761649576163,0.41191029,114540.0,114530.0,0.50603921]
[1761649576368,0.06584527,114540.0,114530.0,0.65964672]
[1761649576569,0.02656481,114540.0,114530.0,1.25964672]
[1761649576763,0.03442731,114540.0,114530.0,1.25964672]
[1761649577159,0.03442731,114540.0,114530.0,0.65964672]
[1761649577364,0.02356481,114570.0,114560.0,0.1232864]
[1761649577670,0.57891232,114580.0,114570.0,0.1444988]
[1761649578067,0.57891232,114580.0,114570.0,0.30447317]
[1761649578266,0.19454751,114580.0,114570.0,0.30447317]
[1761649578971,0.19454751,114580.0,114570.0,0.15346566]
[1761649579265,0.19454751,114580.0,114570.0,0.30447317]
[1761649579467,0.19454751,114580.0,114570.0,0.15346566]
[1761649579665,0.19554751,114580.0,114570.0,0.15346566]
[1761649579870,0.19554751,114580.0,114570.0,0.15446566]
[1761649580069,0.19554751,114580.0,114570.0,0.1454988]
[1761649580266,0.19454751,114580.0,114570.0,0.1454988]
[1761649580572,0.34555502,114580.0,114570.0,0.15427929]
[1761649580767,0.34555502,114580.0,114570.0,0.1454988]
[1761649581073,0.19454751,114580.0,114570.0,0.1454988]
[1761649581467,0.19454751,114580.0,114570.0,0.1480988]
[1761649581663,0.04354,114580.0,114570.0,0.5088988]
[1761649582366,0.55522029,114590.0,114580.0,0.05721]
[1761649582767,0.56042029,114590.0,114580.0,0.05721]
[1761649583577,0.20062029,114590.0,114580.0,0.1444912]
[1761649586178,0.20062029,114590.0,114580.0,0.05721]
[1761649587476,0.2241851,114590.0,114580.0,0.05721]
[1761649589379,0.25561594,114590.0,114580.0,0.05721]
[1761649590074,0.25561594,114590.0,114570.0,0.05822]
[1761649590075,0.26075594,114590.0,114570.0,0.05822]
[1761649590378,0.2368951,114580.0,114570.0,0.04523]
[1761649590573,0.26832594,114580.0,114570.0,0.04523]
[1761649590875,0.0573,114570.0,114560.0,0.1455164]
[1761649591178,0.24481113,114570.0,114560.0,0.1455164]
[1761649591876,0.23211113,114570.0,114560.0,0.1455164]
[1761649592480,0.23211113,114570.0,114560.0,0.1495164]
[1761649595186,0.25567594,114570.0,114560.0,0.1495164]
[1761649595872,0.25047594,114570.0,114560.0,0.1521164]
[1761649596079,0.09959565,114570.0,114560.0,0.1521164]
[1761649597696,0.07661565,114570.0,114560.0,0.5129164]
[1761649598594,0.09959565,114570.0,114560.0,0.5129164]
[1761649599195,0.05499565,114570.0,114560.0,0.5129164]
[1761649599394,0.05499565,114570.0,114560.0,1.1129164]
[1761649600295,0.08641361,114570.0,114560.0,1.1129164]
[1761649600598,0.2818939,114570.0,114560.0,1.02302]
[1761649600801,0.25567594,114570.0,114560.0,1.02302]
[1761649601302,0.2870939,114570.0,114560.0,1.02302]
[1761649601502,0.2870939,114570.0,114560.0,1.01902]
[1761649601695,0.2870939,114570.0,114560.0,1.02102]
[1761649601895,0.2818939,114570.0,114560.0,1.02102]
[1761649602199,0.25832909,114570.0,114560.0,1.02302]
[1761649604095,0.22689825,114570.0,114560.0,1.02302]
[1761649604393,0.30540926,114570.0,114560.0,1.02302]
[1761649605201,0.2739913,114570.0,114560.0,1.02302]
[1761649605699,0.30533434,114570.0,114560.0,1.02302]
[1761649606311,0.2739913,114570.0,114560.0,1.02302]
[1761649606601,0.31057709,114570.0,114560.0,1.02302]
[1761649606903,0.27919165,114570.0,114560.0,1.02302]
[1761649607104,0.27919165,114570.0,114560.0,0.42302]
[1761649608500,0.27919165,114570.0,114560.0,0.06222]
[1761649609302,0.43267194,114570.0,114560.0,0.06222]
[1761649609503,0.81922945,114570.0,114560.0,0.04923]
[1761649610203,0.81922945,114570.0,114560.0,0.02719]
[1761649610599,0.75649331,114570.0,114560.0,0.02719]
[1761649611100,0.75649331,114570.0,114560.0,0.04923]
[1761649611503,0.75649331,114570.0,114560.0,0.04723]
[1761649612205,0.80359179,114570.0,114560.0,0.04723]
[1761649612606,0.80619179,114570.0,114560.0,0.04723]
[1761649612808,0.80619179,114570.0,114560.0,0.002]
[1761649613002,0.6553115,114570.0,114560.0,0.02519]
[1761649613208,0.6527115,114570.0,114560.0,0.04723]
[1761649614112,0.6527115,114570.0,114560.0,0.04523]
[1761649614505,0.6475115,114570.0,114560.0,0.04523]
[1761649614708,0.6527115,114570.0,114560.0,0.04523]
[1761649616603,0.6400115,114570.0,114560.0,0.0584]
[1761649617108,0.6527115,114570.0,114560.0,0.04523]
[1761649617310,0.68409473,114570.0,114560.0,0.04523]
[1761649617610,0.6527115,114570.0,114560.0,0.04523]
[1761649619012,0.6527115,114570.0,114550.0,0.0659788]
[1761649619312,0.25702989,114560.0,114550.0,0.0659788]
[1761649619510,0.28846262,114560.0,114550.0,0.0659788]
[1761649619914,0.25707999,114560.0,114550.0,0.0659788]
[1761649620315,0.28846262,114560.0,114550.0,0.0659788]
[1761649620608,0.64926262,114560.0,114550.0,0.0659788]
[1761649620815,0.28846262,114560.0,114550.0,0.0659788]
[1761649621208,0.25707999,114560.0,114550.0,0.04617]
[1761649621413,0.30117262,114560.0,114550.0,0.002]
[1761649621617,0.27763565,114560.0,114550.0,0.002]
[1761649622002,0.06128,114550.0,114540.0,0.40177]
[1761649622202,0.26453052,114550.0,114540.0,0.40177]
[1761649622915,0.25188052,114550.0,114540.0,0.41455]
[1761649623916,0.25188052,114550.0,114540.0,0.05995]
[1761649624321,0.22834302,114550.0,114540.0,0.42075]
[1761649624506,0.10100023,114550.0,114540.0,0.05995]
[1761649625313,0.07746273,114550.0,114540.0,0.05995]
[1761649625509,0.22834302,114550.0,114540.0,0.05995]
[1761649626915,0.24099302,114550.0,114540.0,0.05995]
[1761649630222,0.24099302,114550.0,114540.0,0.04717]
[1761649630423,0.60179302,114550.0,114540.0,0.04717]
[1761649630612,0.60179302,114550.0,114540.0,0.02547]
[1761649635024,0.60179302,114550.0,114540.0,0.04807]
[1761649637325,0.58914302,114550.0,114540.0,0.04807]
[1761649637521,0.58914302,114550.0,114540.0,0.06086]
[1761649641732,0.58924168,114550.0,114540.0,0.06086]
[1761649645627,0.22844168,114550.0,114540.0,0.57263895]
[1761649645822,0.07746273,114550.0,114540.0,0.7262179]
[1761649646024,0.04603,114550.0,114540.0,0.66255075]
[1761649646330,0.04603,114550.0,114540.0,0.57523895]
[1761649646536,0.07723274,114550.0,114540.0,0.57523895]
[1761649651138,0.22821169,114550.0,114540.0,0.57523895]
[1761649651540,0.20494169,114550.0,114540.0,0.57523895]
[1761649651840,0.22782169,114550.0,114540.0,0.57523895]
[1761649656538,0.07684274,114550.0,114540.0,0.66255065]
[1761649656844,0.07684274,114550.0,114540.0,0.8135296]
[1761649658649,0.20494169,114550.0,114540.0,0.8135296]
[1761649659148,0.22782169,114550.0,114540.0,0.7262179]
[1761649659343,0.19661895,114550.0,114540.0,0.57523895]
[1761649665452,0.19661895,114550.0,114540.0,0.57263895]
[1761649665656,0.22782345,114550.0,114540.0,0.42166]
[1761649665953,0.22782345,114550.0,114540.0,0.57263895]
[1761649666252,0.22782345,114550.0,114540.0,0.42166]
[1761649676560,0.22782345,114550.0,114540.0,0.06086]
[1761649676859,0.3788024,114550.0,114540.0,0.06086]
[1761649677253,0.22782345,114550.0,114540.0,0.06086]
[1761649680964,0.22774486,114550.0,114540.0,0.06086]
[1761649681966,0.22774486,114550.0,114540.0,0.21183895]
[1761649682270,0.22774486,114550.0,114540.0,0.06086]
[1761649690580,0.24039486,114550.0,114540.0,0.04807]
[1761649696290,0.24039486,114550.0,114540.0,0.06115]
[1761649701386,0.26395587,114550.0,114540.0,0.06115]
[1761649702990,0.25130587,114550.0,114540.0,0.06115]
[1761649703193,0.22774486,114550.0,114540.0,0.06115]
[1761649703694,0.2277439,114550.0,114540.0,0.06115]
[1761649704493,0.07676591,114550.0,114540.0,0.06115]
[1761649704691,0.03112591,114550.0,114540.0,0.66283959]
[1761649705188,0.38436101,114570.0,114540.0,0.66283959]
[1761649705390,0.61167321,114570.0,114560.0,0.0572]
[1761649705589,0.09989522,114570.0,114560.0,0.0572]
[1761649705793,0.25087321,114570.0,114560.0,0.0572]
[1761649707694,0.25287321,114570.0,114560.0,0.0572]
[1761649712295,0.2293122,114570.0,114560.0,0.0572]
[1761649722900,0.6028122,114570.0,114550.0,0.4181]
[1761649723101,0.05397,114550.0,114540.0,0.5054101]
[1761649723297,0.20494799,114550.0,114540.0,0.5054101]
[1761649723605,0.23638559,114550.0,114540.0,0.04422]
[1761649724398,0.23638559,114550.0,114540.0,0.04622]
[1761649725098,0.75076519,114550.0,114540.0,0.002]
[1761649725303,0.5997872,114550.0,114540.0,0.002]
[1761649727608,0.60838101,114550.0,114540.0,0.002]
[1761649728410,0.5997872,114550.0,114540.0,0.002]
[1761649732802,0.5997872,114550.0,114540.0,0.02456]
[1761649738913,0.5997872,114550.0,114540.0,0.002]
[1761649740105,0.5971872,114550.0,114540.0,0.02451]
[1761649740306,0.5971872,114550.0,114540.0,0.04554]
[1761649743816,0.43609921,114550.0,114540.0,0.05883]
[1761649744015,0.07529921,114550.0,114540.0,0.57320799]
[1761649744215,0.2262772,114550.0,114540.0,0.41963]
[1761649747216,0.07529921,114550.0,114540.0,0.5069415]
[1761649747424,0.03143921,114550.0,114540.0,0.66051949]
[1761649747808,0.04412,114560.0,114550.0,0.05874]
[1761649748013,0.0755578,114560.0,114550.0,0.06134]
[1761649748212,0.0755578,114560.0,114550.0,0.148644]
[1761649749627,0.22653579,114560.0,114550.0,0.05874]
[1761649752125,0.60004579,114560.0,114540.0,0.05834]
[1761649752319,0.55589799,114550.0,114540.0,0.05834]
[1761649752620,0.58733579,114550.0,114540.0,0.1456516]
[1761649754127,0.58733579,114550.0,114540.0,0.1476516]
[1761649758028,0.4363578,114550.0,114540.0,0.1476516]
[1761649758223,0.58733579,114550.0,114540.0,0.1476516]
[1761649759127,0.4363578,114550.0,114540.0,0.1476516]
[1761649759428,0.58733579,114550.0,114540.0,0.1476516]
[1761649763930,0.58732837,114550.0,114540.0,0.1476516]
[1761649764836,0.59997837,114550.0,114540.0,0.04705]
[1761649765624,0.59997837,114550.0,114540.0,0.06074]
[1761649765926,0.59997837,114550.0,114540.0,0.1480516]
[1761649766526,0.59997837,114550.0,114540.0,0.06074]
[1761649766726,0.59997837,114550.0,114540.0,0.1480516]
[1761649768329,0.59997837,114550.0,114540.0,0.04705]
[1761649768634,0.75354894,114550.0,114540.0,0.002]
[1761649769632,0.75354894,114550.0,114540.0,0.02331]
[1761649769832,0.75354894,114550.0,114540.0,0.04527]
[1761649771427,0.75354894,114550.0,114540.0,0.002]
[1761649774337,0.75354894,114550.0,114540.0,0.02331]